{"text_format":"1","workbook":"xlsx","n_sheets":2,"sheets":["Pokyny","Žádost"],"not_rendered":{"charts":0,"images":3,"macros":1,"external_links":0,"defined_names":2,"comments":0,"pivot_tables":0},"unopened":[],"bounds":{"document_bytes":16777216,"sheet_cells":100000,"rows_first":2000,"rows_last":500,"rows_between":2000,"halvings":0,"cell_chars":16384,"cell_head_chars":4096},"cells_cut":0,"cells_raw":0,"read":"whole","date_system":"1900"}

{"sheet":"Pokyny","index":0,"n_rows":0,"n_cols":0,"rows_kept":0,"cut":false,"hidden":false,"merged":[]}

{"sheet":"Žádost","index":1,"n_rows":189,"n_cols":21,"rows_kept":189,"cut":false,"hidden":false,"merged":[[188,1,188,19],[185,1,185,19],[186,1,186,19],[185,0,186,0],[137,2,137,19],[138,2,138,19],[139,2,139,19],[140,2,140,19],[141,2,141,19],[158,2,158,19],[159,2,159,19],[160,2,160,19],[163,2,163,19],[161,2,161,19],[162,2,162,19],[0,6,0,14],[2,3,2,17],[3,3,3,17],[10,4,10,7],[11,4,11,7],[13,4,13,7],[14,4,14,7],[5,1,5,7],[6,1,6,7],[6,8,6,19],[7,1,7,7],[7,8,7,19],[20,8,20,13],[20,14,20,15],[19,8,19,13],[19,14,19,15],[14,8,14,19],[15,8,15,19],[5,8,5,19],[18,1,18,7],[19,1,19,7],[20,1,20,7],[18,8,18,13],[18,14,18,15],[15,4,15,7],[8,1,15,3],[16,1,16,19],[12,4,12,7],[8,8,8,19],[9,8,9,19],[10,8,10,19],[11,8,11,19],[12,8,12,19],[13,8,13,19],[8,4,8,7],[9,4,9,7],[22,1,22,19],[24,1,24,19],[25,1,25,19],[26,1,26,19],[28,1,28,19],[29,1,29,19],[30,1,30,19],[32,1,32,19],[33,1,33,19],[36,0,38,0],[32,0,34,0],[28,0,30,0],[24,0,26,0],[44,1,44,19],[46,1,46,19],[47,1,47,19],[48,1,48,19],[40,1,40,19],[34,1,34,19],[36,1,36,19],[37,1,37,19],[38,1,38,19],[42,1,42,19],[43,1,43,19],[50,1,50,19],[52,0,52,4],[53,0,53,4],[54,0,54,4],[55,0,55,4],[56,0,56,4],[51,0,51,4],[46,0,48,0],[42,0,44,0],[63,0,65,0],[63,1,63,19],[64,1,64,19],[65,1,65,19],[67,1,67,19],[69,1,69,19],[57,0,57,4],[58,0,58,4],[59,0,59,4],[60,0,60,4],[61,0,61,4],[74,1,74,11],[70,12,70,18],[71,12,71,18],[72,12,72,18],[73,12,73,18],[74,12,74,18],[70,1,70,11],[71,1,71,11],[72,1,72,11],[73,1,73,11],[84,1,84,19],[86,1,86,19],[87,1,87,13],[87,14,87,18],[88,14,88,18],[77,4,77,11],[78,4,78,11],[75,1,78,3],[79,1,79,11],[81,1,81,19],[82,1,82,19],[75,12,75,18],[76,12,76,18],[77,12,77,18],[78,12,78,18],[79,12,79,18],[75,4,75,11],[76,4,76,11],[93,1,93,13],[93,14,93,18],[91,3,91,13],[91,14,91,18],[89,14,89,18],[88,3,88,13],[89,3,89,13],[90,3,90,13],[90,14,90,18],[92,3,92,13],[92,14,92,18],[99,1,99,13],[99,14,99,18],[97,3,97,13],[97,14,97,18],[98,3,98,13],[98,14,98,18],[94,3,94,13],[94,14,94,18],[95,3,95,13],[95,14,95,18],[96,3,96,13],[96,14,96,18],[105,1,105,13],[105,14,105,18],[103,3,103,13],[103,14,103,18],[104,3,104,13],[104,14,104,18],[100,3,100,13],[100,14,100,18],[101,3,101,13],[101,14,101,18],[102,3,102,13],[102,14,102,18],[112,1,112,13],[112,14,112,18],[111,1,111,13],[109,3,109,13],[109,14,109,18],[110,3,110,13],[110,14,110,18],[106,3,106,13],[106,14,106,18],[107,3,107,13],[107,14,107,18],[108,3,108,13],[108,14,108,18],[111,14,111,18],[137,21,138,28],[122,0,124,0],[122,1,122,19],[123,1,123,19],[124,1,124,19],[125,1,125,13],[126,1,126,13],[125,14,125,19],[126,14,126,19],[128,0,130,0],[128,1,128,19],[129,1,129,19],[130,1,130,19],[132,1,132,19],[133,1,133,19],[134,2,134,19],[135,2,135,19],[136,2,136,19],[118,14,118,18],[118,1,118,13],[120,1,120,19],[116,3,116,13],[116,14,116,18],[117,3,117,13],[117,14,117,18],[113,3,113,13],[113,14,113,18],[114,3,114,13],[114,14,114,18],[115,3,115,13],[115,14,115,18]]}
[]
[]
[null,null,null,"ŽÁDOST  O  POSKYTNUTÍ  PODPORY"]
[null,null,null,"z  grantového systému pro \ndiakonické a rozvojové projekty ČCE  "]
[]
[null,"Evidenční číslo\n(žadatel nevyplňuje)"]
[null,"Název grantového programu",null,null,null,null,null,null,"Rozvoj sborů, výchova a vzdělávání 2017"]
[null,"Název projektu"]
[null,"Žadatel1",null,null,"Úplný název"]
[null,null,null,null,"Sídlo žadatele\n(ulice, obec, PSČ)"]
[null,null,null,null,"IČ"]
[null,null,null,null,"Právní status"]
[null,null,null,null,"Bank. spojení (název banky, č. účtu)"]
[null,null,null,null,"Tel., Fax, E-mail"]
[null,null,null,null,"Statutární zástupci"]
[null,null,null,null,"Kontaktní osoba"]
[null,"1Je-li žadatelem sbor ČCE, vyplní pouze řádek \"úplný název\" a \"Kontaktní osoba\" (příp. tel., fax a email, jsou-li odlišné od spojení na sbor)"]
[]
[null,"Celkový rozpočet projektu",null,null,null,null,null,null,{"$f":"IF(M80<>O119,\"Celkové náklady v části 9A a 9B se neshodují!\",M80)","v":0},null,null,null,null,null,"Kč"]
[null,"Požadovaná výše podpory\n(% z celkové výše rozpočtu projektu)",null,null,null,null,null,null,{"$f":"IF(M80<>O119,\"Celkové náklady v části 9A a 9B se neshodují!\",IF(M71>(M80*0.9),\"Požadovaná podpora překračuje limit 90% celkových výdajů\",M71))","v":0},null,null,null,null,null,"Kč",null,"(=",{"$f":"IF(AND(M80>0,M80=O119),M71/I19*100,\"-\")","v":"-"},"%)"]
[null,"Podíl na spolufinancování projektu (vlastní prostředky žadatele, granty, dary, příjmy ze vstupného, účastnické poplatky, apod.)*\n(% z celkové výše projektu)",null,null,null,null,null,null,{"$f":"IF(M80<>O119,\"Celkové náklady v části 9A a 9B se neshodují!\",SUM(M72:S79))","v":0},null,null,null,null,null,"Kč",null,"(=",{"$f":"IF(AND(M80>0,M80=O119),I21/I19*100,\"-\")","v":"-"},"%)"]
[]
[null,"*Do podílu na spolufinancování nelze započíst prostředky získané z jiných podpůrných systémů v rámci ČCE (Jeronymova jednota, granty ze seniorátu atp.)."]
[]
[null,"1. Lokalizace projektu"]
[null,"(Město/obec/sbor/seniorát)"]
[]
[]
[null,"2. Odůvodnění projektu **"]
[null,"(Popište výchozí situaci, která vás vede k podání žádosti)"]
[]
[]
[null,"3. Cíle projektu, cílové skupiny **"]
[null,"(Charakteristiky cílových skupin a výčet cílů, jichž má být projektem být ve vztahu k nim dosaženo) "]
[]
[]
[null,"4.  Popis projektu **"]
[null,"(V případě potřeby podrobněji rozepište v příloze žádosti)"]
[]
[]
[null,"**)  V odstavcích 2), 3) a 4) uvádějte pouze informace, které nejsou dostatečně zřetelné ze samotného názvu a povahy projektu (např. v případě rozvoje práce s matkami a dětmi by bylo zbytečné psát, že cílovou skupinou jsou matky s dětmi). V případě nedostatku místa ve formuláři prosím rozepište v samostatné příloze žádosti (nepovinná příloha)."]
[]
[null,"5.  Výstupy projektu"]
[null,"(Uveďte konkrétní a pokud možno kvantifikované výstupy projektu)"]
[]
[]
[null,"6.  Dlouhodobé náklady vyvolané realizací projektu a jejich pokrytí"]
[null,"(Specifikujte v případě, že případné výdaje na stavební práce a jiné investiční výdaje nezbytné pro dosažení hlavních cílů projektu vyvolají do budoucna potřebu krýt náklady na energie, údržbu aj.)"]
[]
[]
[null,"7.  Časový harmonogram realizace projektu - začátek/ukončení projektu"]
["Aktivity projektu",null,null,null,null,"2016-09-01","2016-10-01","2016-11-01","2016-12-01","2017-01-01","2017-02-01","2017-03-01","2017-04-01","2017-05-01","2017-06-01","2017-07-01","2017-08-01","2017-09-01","2017-10-01","2017-11-30","2017-12-01"]
["Podání žádosti",null,null,null,null,"X"]
["Podpis smlouvy"]
[]
[]
[]
[]
[]
[]
[]
["Závěrečná zpráva a vyúčtování"]
["@^%#1"]
[null,"8.  Organizační a odborné zabezpečení projektu "]
[null,"(Popište své odborné a organizační schopnosti včetně předešlých zkušeností s realizací projektů)"]
[]
[]
[null,"9.  Rozpočet projektu"]
[]
[null,"9A. Struktura rozpočtových zdrojů"]
[null,"Požadovaná výše podpory z grantového systému",null,null,null,null,null,null,null,null,null,null,null,null,null,null,null,null,null,"Kč"]
[null,"Vlastní prostředky žadatele ",null,null,null,null,null,null,null,null,null,null,null,null,null,null,null,null,null,"Kč"]
[null,"Příspěvek obce či jiného subjektu",null,null,null,null,null,null,null,null,null,null,null,null,null,null,null,null,null,"Kč"]
[null,"Očekávané příjmy žadatele (účastnické poplatky apod.)",null,null,null,null,null,null,null,null,null,null,null,null,null,null,null,null,null,"Kč"]
[null,"Granty, dary",null,null,null,null,null,null,null,null,null,null,null,null,null,null,null,null,null,"Kč"]
[null,"Jiné (specifikujte)",null,null,null,null,null,null,null,null,null,null,null,null,null,null,null,null,null,"Kč"]
[null,null,null,null,null,null,null,null,null,null,null,null,null,null,null,null,null,null,null,"Kč"]
[null,null,null,null,null,null,null,null,null,null,null,null,null,null,null,null,null,null,null,"Kč"]
[null,null,null,null,null,null,null,null,null,null,null,null,null,null,null,null,null,null,null,"Kč"]
[null,"ROZPOČTOVÉ ZDROJE CELKEM ",null,null,null,null,null,null,null,null,null,null,{"$f":"SUM(M71:S79)","v":0},null,null,null,null,null,null,"Kč"]
[]
[null,"Bližší specifikace rozpočtových zdrojů (zde prosíme každý z výše uvedených rozpočtových zdrojů (mimo DaRP) podrobněji specifikujte (např. příspěvek obce XY, příspěvek nadace YZ, atd.)"]
[]
[]
[null,"Do rozpočtových zdrojů nelze zahrnout jiné podpůrné systémy v rámci ČCE (Jeronymova jednota, granty ze seniorátu atp.)!"]
[]
[null,"9B. Struktura rozpočtových výdajů"]
["@^%#2","   I.  Stavební práce (stavby, rekonstrukce, opravy)",null,null,null,null,null,null,null,null,null,null,null,null,{"$f":"ROUND(SUM(O89:S93),2)","v":0},null,null,null,null,"Kč"]
[null,null,1.01,null,null,null,null,null,null,null,null,null,null,null,null,null,null,null,null,"Kč"]
[null,null,{"$f":"C89+0.01","v":1.02},null,null,null,null,null,null,null,null,null,null,null,null,null,null,null,null,"Kč"]
[null,null,{"$f":"C90+0.01","v":1.03},null,null,null,null,null,null,null,null,null,null,null,null,null,null,null,null,"Kč"]
[null,null,{"$f":"C91+0.01","v":1.04},null,null,null,null,null,null,null,null,null,null,null,null,null,null,null,null,"Kč"]
[null,null,{"$f":"C92+0.01","v":1.05},null,null,null,null,null,null,null,null,null,null,null,null,null,null,null,null,"Kč"]
["@^%#3"," II.   Vybavení (nábytek, zařízení, nádobí, přístroje, hračky aj.)",null,null,null,null,null,null,null,null,null,null,null,null,{"$f":"ROUND(SUM(O95:S99),2)","v":0},null,null,null,null,"Kč"]
[null,null,2.0099999999999998,null,null,null,null,null,null,null,null,null,null,null,null,null,null,null,null,"Kč"]
[null,null,{"$f":"C95+0.01","v":2.0199999999999996},null,null,null,null,null,null,null,null,null,null,null,null,null,null,null,null,"Kč"]
[null,null,{"$f":"C96+0.01","v":2.0299999999999994},null,null,null,null,null,null,null,null,null,null,null,null,null,null,null,null,"Kč"]
[null,null,2.0399999999999991,null,null,null,null,null,null,null,null,null,null,null,null,null,null,null,null,"Kč"]
[null,null,2.0499999999999989,null,null,null,null,null,null,null,null,null,null,null,null,null,null,null,null,"Kč"]
["@^%#4","III.  Publikace, propagace (plakáty, brožury aj.)",null,null,null,null,null,null,null,null,null,null,null,null,{"$f":"ROUND(SUM(O101:S105),2)","v":0},null,null,null,null,"Kč"]
[null,null,3.01,null,null,null,null,null,null,null,null,null,null,null,null,null,null,null,null,"Kč"]
[null,null,{"$f":"C101+0.01","v":3.0199999999999996},null,null,null,null,null,null,null,null,null,null,null,null,null,null,null,null,"Kč"]
[null,null,3.0299999999999994,null,null,null,null,null,null,null,null,null,null,null,null,null,null,null,null,"Kč"]
[null,null,3.0399999999999991,null,null,null,null,null,null,null,null,null,null,null,null,null,null,null,null,"Kč"]
[null,null,3.0499999999999989,null,null,null,null,null,null,null,null,null,null,null,null,null,null,null,null,"Kč"]
["@^%#5","IV.  Přednášející, vystupující aj. (odměny, cestovné, ubytování atp.)",null,null,null,null,null,null,null,null,null,null,null,null,{"$f":"ROUND(SUM(O107:S111),2)","v":0},null,null,null,null,"Kč"]
[null,null,4.01,null,null,null,null,null,null,null,null,null,null,null,null,null,null,null,null,"Kč"]
[null,null,{"$f":"C107+0.01","v":4.0199999999999996},null,null,null,null,null,null,null,null,null,null,null,null,null,null,null,null,"Kč"]
[null,null,4.0299999999999994,null,null,null,null,null,null,null,null,null,null,null,null,null,null,null,null,"Kč"]
[null,null,4.0399999999999991,null,null,null,null,null,null,null,null,null,null,null,null,null,null,null,null,"Kč"]
[null,null,4.0499999999999989,null,null,null,null,null,null,null,null,null,null,null,null,null,null,null,null,"Kč"]
[null,"V.   Administrace, koordinace (telekomunikace, kopírování kanc. materiál, příp. odměny za koordinaci) – uznatelné pouze jako paušální částka do výše max.  5% z celkových  výdajů (lze nižší)",null,null,null,null,null,null,null,null,null,null,null,null,{"$f":"ROUND(((O113+O106+O100+O94+O88)/0.95) - (O113+O106+O100+O94+O88),2)","v":0},null,null,null,null,"Kč"]
["@^%#6","VI.  Jiné (specifikujte)",null,null,null,null,null,null,null,null,null,null,null,null,{"$f":"ROUND(SUM(O114:S118),2)","v":0},null,null,null,null,"Kč"]
[null,null,6.01,null,null,null,null,null,null,null,null,null,null,null,null,null,null,null,null,"Kč"]
[null,null,{"$f":"C114+0.01","v":6.02},null,null,null,null,null,null,null,null,null,null,null,null,null,null,null,null,"Kč"]
[null,null,{"$f":"C115+0.01","v":6.0299999999999994},null,null,null,null,null,null,null,null,null,null,null,null,null,null,null,null,"Kč"]
[null,null,6.0399999999999991,null,null,null,null,null,null,null,null,null,null,null,null,null,null,null,null,"Kč"]
[null,null,6.0499999999999989,null,null,null,null,null,null,null,null,null,null,null,null,null,null,null,null,"Kč"]
[null,"ROZPOČTOVÉ VÝDAJE CELKEM",null,null,null,null,null,null,null,null,null,null,null,null,{"$f":"SUM(O113,O106,O100,O94,O88,O112)","v":0},null,null,null,null,"Kč"]
[]
[null,"Žadatelé, kteří mohou uplatnit odpočet DPH na vstupu, uvádějí výdaje bez DPH. Ostatní uvádějí výdaje včetně DPH."]
[]
["@^%#7","10. Stručná charakteristika činnosti žadatele"]
[null,"(Sbory nevyplňují)"]
[]
[null,"Je žadatel plátcem DPH? (vyberte)",null,null,null,null,null,null,null,null,null,null,null,null,"Prosím vyberte:"]
[null,"Má žadatel nárok na odpočet DPH? (vyberte)",null,null,null,null,null,null,null,null,null,null,null,null,"Prosím vyberte:",null,null,null,null,null,"Ano"]
[null,null,null,null,null,null,null,null,null,null,null,null,null,null,null,null,null,null,null,null,"Ne"]
[null,"11. Žádost zpracoval:"]
[null,"(Jméno, název instituce, kontaktní údaje)"]
[]
[]
["@^%#8","12. Seznam příloh"]
[null,"Uveďte seznam všech příloh, které k žádosti přikládáte. Přílohy očíslujte. Předepsané, světle šedě podbarvené přílohy (1. - 6.) jsou povinné, další (nepovinné) přílohy uveďte níže (7. a dále)"]
[null,"1.","Stručný a věcný popis naplnění specifických kritérií, uvedených ve výzvě"]
[null,"2.","Kopie dokladů dokládajících vlastnický nebo dlouhodobý nájemní vztah k nemovitostem a souhlas majitele nemovitosti s provedením staveb či stavebních úprav (pouze v případě projektů zahrnujících stavební práce týkající se nemovitostí)"]
[null,"3.","Přehledová mapa s lokalizací místa realizace projektu (pouze je-li místo realizace projektu odlišné od sídla sboru, který je nositelem nebo spolupředkladatelem projektu)"]
[null,"4.","Písemné potvrzení příslušného sboru ČCE o spolupráci na projektu - u žádostí podávaných organizační jednotkou Diakonie ČCE nebo jinou nestátní neziskovou organizací"]
[null,"5. ","Stanovisko seniorátního výboru - u žádostí týkajících se projektů realizovaných farním sborem nebo ve spolupráci s ním "]
[null,"6. ","Kopie dokumentů prokazujících registraci žadatele a uvádějících rovněž jméno jeho statutárního zástupce -  u žádostí podávaných jinou organizací než sborem nebo organizační jednotkou Diakonie ČCE"]
[null,"7."]
[]
[]
[]
[]
[]
[]
[]
[]
[]
[]
[]
[]
[]
[]
[]
[]
[]
[]
[]
[]
[]
[]
[]
[]
["@^%#9"]
[]
[]
[]
[]
[]
[]
[]
[]
[]
[]
[]
[]
[]
[]
[]
[]
[]
[]
[]
[null,"Razítko a podpisy statutárních zástupců žadatele"]
[]
[]
[null,"________________________________________________________________________________"]